fUSD/lending_fUSD_20251220
["ID","MTS","AMOUNT","RATE_DAILY","PERIOD"]
[399302626,1766262637924,-500.0,0.00013999,2]
[399302627,1766262637934,-500.0,0.00013999,2]
[399302628,1766262637943,-500.0,0.00013999,2]
[399302629,1766262637953,-500.0,0.00013999,2]
[399302630,1766262637962,-4873.90833742,0.00014,2]
[399302632,1766262639888,-392.86667834,0.00014,2]
[399302633,1766262640106,-508.89429317,0.00014,2]
[399302634,1766262640119,-441.775,0.00014,2]
[399302635,1766262640131,-291.714,0.00014,2]
[399302636,1766262640143,-385.23,0.00014,2]
[399302637,1766262640331,-1.7e-07,0.00014,2]
[399302647,1766262643045,-1369.95971319,0.000139,2]
[399302648,1766262643054,-5940.25841581,0.00014,2]
[399302658,1766262645730,-13831.98,0.00014,2]
[399302660,1766262645842,-948.35522523,0.00014,2]
[399302661,1766262645954,-529.75606556,0.00014,2]
[399302662,1766262645967,-791.07285415,0.00014,2]
[399302663,1766262645979,-357.44392793,0.00014,2]
[399302700,1766262711954,1355.0,7.001e-05,2]
[399302701,1766262712153,1355.0,7.369e-05,2]
[399302702,1766262712381,1355.0,7.738e-05,2]
[399302703,1766262712595,1355.0,8.106e-05,2]
[399302704,1766262712791,1355.0,8.475e-05,2]
[399302705,1766262713871,1355.0,8.843e-05,2]
[399302706,1766262713923,1355.0,9.211e-05,2]
[399302707,1766262713995,489.18121752,9.58e-05,2]
[399302708,1766262714020,865.81878248,9.58e-05,2]
[399302709,1766262714081,1355.0,9.948e-05,2]
[399302710,1766262714137,1355.0,0.00010317,2]
[399302711,1766262714736,-577.92795973,0.00010685,2]
[399302716,1766262717492,-305.02785219,0.00010685,2]
[399302720,1766262719020,-472.04418808,0.00010685,2]
[399302721,1766262719043,-163.50737635,0.00011054,2]
[399302732,1766262724736,-251.19922964,0.00011054,2]
[399302736,1766262728831,-223.72268754,0.00011054,2]
[399302737,1766262731707,-711.27225076,0.00011054,2]
[399302738,1766262735448,-5.29845571,0.00011054,2]
[399302739,1766262735470,-279.57057104,0.00011422,2]
[399302740,1766262740015,-182.42775107,0.00011422,2]
[399302742,1766262743468,-255.8197427,0.00011422,2]
[399302743,1766262746480,-239.44506316,0.00011422,2]
[399302744,1766262748899,-152.02,0.00011422,2]
[399302746,1766262750631,-245.71687203,0.00011422,2]
[399302747,1766262750664,-286.66410235,0.00011791,2]
[399302748,1766262752914,-160.79287812,0.00011791,2]
[399302749,1766262755897,-303.69580169,0.00011791,2]
[399302750,1766262757911,-177.50363396,0.00011791,2]
[399302751,1766262759734,-320.06511931,0.00011791,2]
[399302752,1766262765060,-106.27846457,0.00011791,2]
[399302753,1766262765085,-79.07195408,0.00012159,2]
[399302755,1766262768577,-195.0,0.00012159,2]
[399302757,1766262772726,-198.1970372,0.00012159,2]
[399302758,1766262775533,-274.486509,0.00012159,2]
[399302759,1766262780246,-261.87751524,0.00012159,2]
[399302760,1766262782070,-346.07597434,0.00012159,2]
[399302905,1766263212671,-155.78471602,0.00012159,2]
[399302925,1766263392650,-94.21528398,0.00012159,2]
[399302926,1766263392672,-103.64455096,0.00012159,2]
[399302929,1766263452594,-91.35544904,0.00012159,2]
[399302930,1766263452617,-250.0,0.00012159,2]
[399302931,1766263452641,-143.31630514,0.00012159,2]
[399302952,1766263720242,999.0,0.00012498,3]
[399302964,1766263812577,-158.48078248,0.00012159,2]
[399302966,1766263814777,-91.51921752,0.00012159,2]
[399302967,1766263814799,-133.83493128,0.00012159,2]
[399302971,1766263831745,-61.16506872,0.00012159,2]
[399302972,1766263831754,-0.29101014,0.00012159,2]
[399302973,1766263831762,-514.13159984,0.00012494,2]
[399302974,1766263831773,-685.86840016,0.00012494,2]
[399302975,1766263831783,-300.0,0.00012494,2]
[399302976,1766263831795,-10041.83847789,0.00012495,2]
[399302977,1766263831817,-6061.30152211,0.00012495,2]
[399302978,1766263831827,-150.0,0.00012499,2]
[399302979,1766263831837,-1355.0,0.00012528,2]
[399302980,1766263831846,-1500.0,0.00012536,2]
[399302981,1766263831855,-1124.0,0.0001256,2]
[399302982,1766263831865,-21052.87,0.00012561,2]
[399302983,1766263831874,-150.0,0.00012612,2]
[399302984,1766263831883,-1355.0,0.00012896,2]
[399302985,1766263831893,-3812.45,0.00012989,2]
[399302986,1766263831906,-466.98,0.00013018,2]
[399302987,1766263831915,-150.0,0.00013112,2]
[399302988,1766263831925,-329.24,0.00013113,2]
[399302989,1766263831934,-200.0,0.00013113,2]
[399302990,1766263831944,-200.0,0.00013113,2]
[399302991,1766263831953,-151.0,0.00013113,2]
[399302992,1766263831962,-151.0,0.00013113,2]
[399302993,1766263831971,-151.0,0.00013113,2]
[399302995,1766263831980,-151.0,0.00013113,2]
[399302996,1766263831990,-151.0,0.00013113,2]
[399302998,1766263831999,-151.0,0.00013113,2]
[399303000,1766263832008,-500.0,0.00013113,2]
[399303002,1766263832017,-385.09325978,0.00013113,2]
[399303004,1766263832027,-151.0,0.00013113,2]
[399303006,1766263832036,-151.0,0.00013113,2]
[399303008,1766263832045,-151.0,0.00013113,2]
[399303010,1766263832054,-151.0,0.00013113,2]
[399303012,1766263832064,-151.0,0.00013113,2]
[399303015,1766263832073,-151.0,0.00013113,2]
[399303017,1766263832082,-500.0,0.00013113,2]
[399303019,1766263832095,-200.0,0.00013113,2]
[399303020,1766263832106,-164.17570417,0.0001312,2]
[399303022,1766263832116,-500.0,0.0001312,2]
[399303023,1766263832126,-500.0,0.0001312,2]
[399303024,1766263832135,-500.0,0.0001312,2]
[399303025,1766263832144,-500.0,0.0001312,2]
[399303026,1766263832154,-500.0,0.0001312,2]
[399303027,1766263832163,-500.0,0.0001312,2]
[399303028,1766263832173,-500.0,0.0001312,2]
[399303029,1766263832183,-500.0,0.0001312,2]
[399303030,1766263832193,-500.0,0.0001312,2]
[399303031,1766263832203,-500.0,0.0001312,2]
[399303032,1766263832214,-500.0,0.0001312,2]
[399303033,1766263832224,-500.0,0.0001312,2]
[399303034,1766263832234,-408.45637778,0.0001312,2]
[399303035,1766263832243,-500.0,0.0001312,2]
[399303036,1766263832253,-500.0,0.0001312,2]
[399303037,1766263832263,-500.0,0.0001312,2]
[399303038,1766263832274,-500.0,0.0001312,2]
[399303039,1766263832285,-1000.0,0.00013121,2]
[399303040,1766263832295,-9999.99,0.00013121,2]
[399303041,1766263832304,-150.99,0.00013121,2]
[399303042,1766263832315,-9999.99,0.00013121,2]
[399303043,1766263832324,-299.99,0.00013121,2]
[399303044,1766263832334,-150.99,0.00013121,2]
[399303045,1766263832343,-346.82,0.00013121,2]
[399303046,1766263832353,-746.15,0.00013154,2]
[399303047,1766263832362,-500.0,0.0001326,2]
[399303048,1766263832372,-1355.0,0.00013265,2]
[399303049,1766263832383,-166.66,0.00013349,2]
[399303050,1766263832392,-289.97924679,0.00013375,2]
[399303051,1766263832401,-195.0,0.00013375,2]
[399303052,1766263832410,-195.0,0.00013375,2]
[399303053,1766263832420,-250.0,0.00013375,2]
[399303054,1766263832430,-195.0,0.00013375,2]
[399303055,1766263832439,-329.24,0.00013387,2]
[399303056,1766263832448,-544.018244,0.00013464,2]
[399303057,1766263832458,-239.0,0.00013474,2]
[399303058,1766263832468,-1819.7489811,0.00013585,2]
[399303059,1766263832486,-1355.0,0.00013633,2]
[399303060,1766263832497,-97.35504066,0.0001366,2]
[399303061,1766263832512,-86.74283762,0.0001366,2]
[399303062,1766263832521,-239.39219225,0.0001366,2]
[399303063,1766263832531,-245.93277013,0.0001366,2]
[399303064,1766263832548,-254.06722987,0.0001366,2]
[399303065,1766263832558,-313.54624659,0.0001366,2]
[399303066,1766263832567,-156.76437505,0.00013661,2]
[399303067,1766263832578,-172.47562495,0.00013661,2]
[399303068,1766263832588,-500.0,0.00013661,2]
[399303069,1766263832598,-200.0,0.00013661,2]
[399303070,1766263832607,-707.69,0.00013699,2]
[399303071,1766263832616,-200.0,0.00013699,2]
[399303072,1766263832626,-1000.0,0.00013702,2]
[399303073,1766263832635,-1000.0,0.00013702,2]
[399303074,1766263832645,-1000.0,0.00013702,2]
[399303075,1766263832654,-32.76721808,0.00013702,2]
[399303076,1766263832670,-503.42733945,0.00013702,2]
[399303077,1766263832682,-463.80544247,0.00013702,2]
[399303078,1766263832691,-82.73952778,0.00013702,2]
[399303079,1766263832703,-562.249999,0.00013702,2]
[399303080,1766263832718,-355.01047322,0.00013702,2]
[399303081,1766263832729,-1000.0,0.00013702,2]
[399303082,1766263832738,-1000.0,0.00013702,2]
[399303083,1766263832748,-1000.0,0.00013702,2]
[399303084,1766263832758,-905.54,0.00013702,2]
[399303085,1766263832767,-1000.0,0.00013702,2]
[399303086,1766263832777,-1000.0,0.00013702,2]
[399303087,1766263832786,-340.735,0.00013702,2]
[399303088,1766263832796,-420.0,0.00013709,2]
[399303089,1766263832806,-1680.0,0.00013744,2]
[399303090,1766263832816,-19.67176692,0.00013753,2]
[399303091,1766263832840,-480.32823308,0.00013753,2]
[399303092,1766263832850,-165.86,0.0001376,2]
[399303093,1766263832859,-500.0,0.00013781,2]
[399303094,1766263832869,-200.96,0.00013783,2]
[399303095,1766263832881,-166.66,0.0001379,2]
[399303096,1766263832890,-2500.0,0.00013792,2]
[399303097,1766263832900,-337.68948002,0.00013792,2]
[399303098,1766263838016,-580.31131998,0.00013792,2]
[399303099,1766263838026,-1903.31917601,0.000138,2]
[399303100,1766263838035,-689.04151979,0.000138,2]
[399303101,1766263838045,-369.72568588,0.000138,2]
[399303102,1766263838054,-3800.81734642,0.00013862,2]
[399303103,1766263838063,-151.0,0.00013889,2]
[399303104,1766263838072,-500.0,0.00013891,2]
[399303105,1766263838082,-236.05898136,0.00013891,2]
[399303106,1766263838091,-500.0,0.00013891,2]
[399303107,1766263838104,-500.0,0.00013891,2]
[399303108,1766263838113,-500.0,0.00013891,2]
[399303109,1766263838122,-310.03592822,0.00013891,2]
[399303116,1766263840042,-189.96407178,0.00013891,2]
[399303117,1766263840052,-650.238789,0.00013892,2]
[399303119,1766263840554,-1.7e-07,0.00013892,2]
[399303142,1766263845877,-500.0,0.00013892,2]
[399303143,1766263846041,-11122.73846552,0.00013892,2]
[399303144,1766263846052,-4377.62457762,0.00013892,2]
[399303145,1766263846063,-4787.58517645,0.00013892,2]
[399303146,1766263846075,-1236.613284,0.00013892,2]
[399303147,1766263846086,-5911.61489766,0.00013892,2]
[399303148,1766263846100,-456.93,0.00013892,2]
[399303149,1766263846112,-434.405,0.00013892,2]
[399303166,1766264054313,3578.710438,7.945e-05,2]
[399303167,1766264186061,5524.0,0.000126,5]
[399303180,1766264394637,5857.87,0.00022,30]
[399303181,1766264410779,1562.0,0.0002244,120]
[399303226,1766264707378,937.0,0.00022534,120]
[399303231,1766264731995,-153.56,0.00012886,2]
[399303324,1766265007101,562.0,0.00022585,120]
[399303342,1766265031931,-1131.66823526,0.00012854,2]
[399303343,1766265031943,-68.33176474,0.00012854,2]
[399303344,1766265031953,-300.0,0.00012854,2]
[399303345,1766265031962,-300.0,0.00012854,2]
[399303346,1766265031972,-724.17426914,0.00012854,2]
[399303347,1766265031983,-475.82573086,0.00012854,2]
[399303348,1766265031993,-230.06787045,0.00012855,2]
[399303349,1766265032014,-69.93212955,0.00012855,2]
[399303350,1766265032037,-11200.21997405,0.00012855,2]
[399303351,1766265032064,-3598.83002595,0.00012855,2]
[399303352,1766265032077,-150.0,0.00012855,2]
[399303353,1766265032087,-3086.44,0.00012886,2]
[399303354,1766265032096,-205.63,0.00012947,2]
[399303355,1766265032108,-547.0,0.00013315,2]
[399303356,1766265032117,-151.0,0.0001345,2]
[399303357,1766265032127,-1126.01543071,0.00013453,2]
[399303358,1766265032138,-2640.28225799,0.00013453,2]
[399303359,1766265032149,-176.5923113,0.00013453,2]
[399303360,1766265032158,-731.71929726,0.00013514,2]
[399303361,1766265032170,-1245.29070274,0.00013514,2]
[399303362,1766265032180,-169.62578746,0.00013514,2]
[399303363,1766265032195,-3.54221254,0.00013514,2]
[399303364,1766265032204,-668.52808544,0.00013691,2]
[399303365,1766265032216,-1903.84933284,0.00013691,2]
[399303366,1766265032226,-911.45435411,0.00013692,2]
[399303367,1766265032236,-165.40685299,0.00013692,2]
[399303368,1766265032245,-1000.0,0.00013699,2]
[399303369,1766265032254,-2300.26301627,0.000137,2]
[399303370,1766265032263,-150.0,0.00013781,2]
[399303371,1766265032273,-200.0,0.00013782,2]
[399303372,1766265032282,-500.0,0.00013782,2]
[399303373,1766265032291,-42.95644379,0.00013782,2]
[399303374,1766265032306,-412.77728069,0.00013782,2]
[399303375,1766265032318,-44.26627552,0.00013782,2]
[399303376,1766265032328,-500.0,0.00013782,2]
[399303412,1766265032337,-118.16672448,0.00013782,2]
[399303426,1766265039209,-294.3711004,0.00013782,2]
[399303427,1766265039222,-87.46217512,0.00013782,2]
[399303428,1766265039232,-500.0,0.00013782,2]
[399303429,1766265039242,-242.10884488,0.00013782,2]
[399303430,1766265039254,-257.89115512,0.00013782,2]
[399303431,1766265039264,-500.0,0.00013782,2]
[399303432,1766265039273,-500.0,0.00013782,2]
[399303433,1766265039283,-112.82491288,0.00013782,2]
[399303434,1766265039302,-387.17508712,0.00013782,2]
[399303435,1766265039312,-500.0,0.00013782,2]
[399303436,1766265039322,-500.0,0.00013782,2]
[399303437,1766265039331,-500.0,0.00013782,2]
[399303438,1766265039341,-500.0,0.00013782,2]
[399303439,1766265039351,-500.0,0.00013782,2]
[399303440,1766265039360,-462.42491288,0.00013782,2]
[399303441,1766265039375,-37.57508712,0.00013782,2]
[399303442,1766265039384,-500.0,0.00013782,2]
[399303443,1766265039393,-500.0,0.00013782,2]
[399303444,1766265039403,-500.0,0.00013782,2]
[399303445,1766265039412,-151.0,0.00013782,2]
[399303446,1766265039422,-151.0,0.00013782,2]
[399303447,1766265039433,-151.0,0.00013782,2]
[399303448,1766265039443,-151.0,0.00013782,2]
[399303449,1766265039454,-151.0,0.00013782,2]
[399303450,1766265039463,-151.0,0.00013782,2]
[399303451,1766265039473,-151.0,0.00013782,2]
[399303452,1766265039482,-151.0,0.00013782,2]
[399303453,1766265039491,-151.0,0.00013782,2]
[399303454,1766265039501,-151.0,0.00013782,2]
[399303455,1766265039511,-151.0,0.00013782,2]
[399303456,1766265039520,-151.0,0.00013782,2]
[399303457,1766265039529,-151.0,0.00013784,2]
[399303458,1766265039538,-409.82983623,0.00013786,2]
[399303459,1766265040090,-90.17016377,0.00013786,2]
[399303460,1766265040100,-500.0,0.00013786,2]
[399303461,1766265040110,-500.0,0.00013786,2]
[399303462,1766265040120,-500.0,0.00013786,2]
[399303463,1766265040131,-536.96662986,0.00013786,2]
[399303464,1766265040141,-500.0,0.00013786,2]
[399303465,1766265040151,-500.0,0.00013786,2]
[399303466,1766265040161,-500.0,0.00013786,2]
[399303467,1766265040171,-5720.14642687,0.00013787,2]
[399303468,1766265040361,-253.11259975,0.00013787,2]
[399303479,1766265043084,-1200.67097338,0.00013787,2]
[399303481,1766265043093,-151.0,0.00013787,2]
[399303482,1766265043103,-569.48237261,0.00013789,2]
[399303483,1766265043113,-167.57453457,0.00013789,2]
[399303485,1766265043123,-5512.0,0.0001379,2]
[399303487,1766265043132,-151.0,0.0001379,2]
[399303489,1766265043141,-58905.92122217,0.0001379,2]
[399303491,1766265043153,-25186.3396482,0.0001379,2]
[399303494,1766265043356,-416.27920025,0.0001379,2]
[399303508,1766265046219,-2457.0,0.0001379,2]
[399303665,1766265879111,160.51,0.00010242,2]
[399303674,1766265919981,2684.97077952,9e-05,2]
[399303675,1766265920005,505.44519974,9e-05,2]
[399303687,1766265927685,-547.65321864,0.000108,2]
[399303688,1766265930022,-275.08969456,0.000108,2]
[399303738,1766266095936,388.35645142,0.0001,2]
[399303740,1766266107330,2726.43312841,0.0001,2]
[399303743,1766266117788,2583.05748545,0.0001,2]
[399303746,1766266118708,-267.36914394,0.000107,2]
[399303747,1766266118730,-77.34841194,0.000108,2]
[399303752,1766266137681,-124.39689117,0.000108,2]
[399303753,1766266137703,-34.47727865,0.00011193,2]
[399303754,1766266140938,-203.52895116,0.00011193,2]
[399303788,1766266232066,-11.99377019,0.00011193,2]
[399303791,1766266232076,-300.0,0.00012312,2]
[399303792,1766266232085,-300.0,0.00012312,2]
[399303794,1766266232095,-250.0,0.00012312,2]
[399303795,1766266232103,-1031.62,0.00012604,2]
[399303797,1766266232112,-409.61305088,0.00012708,2]
[399303800,1766266232124,-114.38694912,0.00012708,2]
[399303802,1766266232133,-180.0,0.00012708,2]
[399303804,1766266232142,-38160.9667174,0.00012709,2]
[399303806,1766266232153,-2377.9732826,0.00012709,2]
[399303808,1766266232162,-200.0,0.00012802,2]
[399303810,1766266232171,-272.1767174,0.00012893,2]
[399303812,1766266232182,-727.8232826,0.00012893,2]
[399303814,1766266232191,-1274.39,0.00012925,2]
[399303816,1766266232200,-150.0,0.00012988,2]
[399303818,1766266232209,-500.0,0.00012989,2]
[399303820,1766266232218,-500.0,0.00012989,2]
[399303822,1766266232232,-500.0,0.00012989,2]
[399303824,1766266232241,-500.0,0.00012989,2]
[399303826,1766266232250,-253.69666298,0.00012989,2]
[399303828,1766266232259,-500.0,0.00012989,2]
[399303830,1766266232269,-205.0652065,0.00012989,2]
[399303831,1766266232278,-500.0,0.00012989,2]
[399303832,1766266232287,-500.0,0.00012989,2]
[399303833,1766266232300,-17350.38068504,0.0001299,2]
[399303834,1766266232310,-166.68,0.0001309,2]
[399303836,1766266232319,-500.0,0.00013207,2]
[399303838,1766266232330,-150.12,0.00013207,2]
[399303840,1766266232339,-150.07,0.00013207,2]
[399303842,1766266232348,-160.76,0.00013351,2]
[399303844,1766266232357,-500.0,0.00013425,2]
[399303846,1766266232366,-1581.608,0.00013514,2]
[399303848,1766266232375,-173.169,0.00013514,2]
[399303851,1766266232385,-1849.95,0.0001359,2]
[399303854,1766266232394,-150.99,0.0001359,2]
[399303857,1766266232403,-820.30891869,0.0001359,2]
[399303860,1766266232412,-246.48379058,0.0001359,2]
[399303862,1766266232421,-290.2206,0.0001359,2]
[399303863,1766266232430,-151.0,0.00013682,2]
[399303864,1766266232440,-151.0,0.00013682,2]
[399303865,1766266232449,-151.0,0.00013682,2]
[399303866,1766266232459,-151.0,0.00013682,2]
[399303867,1766266232469,-151.0,0.00013682,2]
[399303868,1766266232479,-151.0,0.00013682,2]
[399303869,1766266232489,-151.0,0.00013682,2]
[399303870,1766266232498,-151.0,0.00013682,2]
[399303871,1766266232507,-151.0,0.00013682,2]
[399303872,1766266232517,-151.0,0.00013682,2]
[399303873,1766266232527,-151.0,0.00013682,2]
[399303874,1766266232537,-151.0,0.00013682,2]
[399303875,1766266232550,-200.0,0.00013682,2]
[399303876,1766266232560,-398.63766082,0.00013689,2]
[399303877,1766266232569,-50369.94706279,0.0001369,2]
[399303878,1766266232605,-6538.05098953,0.0001369,2]
[399303879,1766266232616,-3312.93904154,0.0001369,2]
[399303880,1766266232627,-1490.50948365,0.0001369,2]
[399303881,1766266232659,-435.29300942,0.0001369,2]
[399303882,1766266232671,-442.096676,0.0001369,2]
[399303883,1766266238244,-5164.11974986,0.0001369,2]
[399303884,1766266238255,-5626.80000001,0.0001369,2]
[399303885,1766266238266,-1754.81785,0.0001369,2]
[399303886,1766266238306,-711.441254,0.0001369,2]
[399303887,1766266238317,-3001.74636328,0.0001369,2]
[399304072,1766266240299,-1517.46946338,0.0001369,2]
[399304092,1766266240469,-999.21765633,0.0001369,2]
[399304101,1766266240638,-505.03941771,0.0001369,2]
[399304106,1766266243500,-872.26117996,0.0001369,2]
[399304107,1766266243540,-359.63511905,0.0001369,2]
[399304108,1766266243551,-925.9169098,0.0001369,2]
[399304113,1766266246249,-12613.98367604,0.0001369,2]
[399304114,1766266246422,-1994.61084385,0.0001369,2]
[399304115,1766266246434,-2228.52430962,0.0001369,2]
[399304116,1766266246446,-1362.65454814,0.0001369,2]
[399304117,1766266246459,-392.41823483,0.0001369,2]
[399304118,1766266246471,-912.15864265,0.0001369,2]
[399304119,1766266246483,-1800.00000001,0.0001369,2]
[399304228,1766266529498,150.55,6.409e-05,2]
[399304230,1766266529681,150.55,7.21e-05,2]
[399304231,1766266530073,150.55,8.011e-05,2]
[399304232,1766266530417,150.55,8.813e-05,2]
[399304233,1766266530614,150.55,9.614e-05,2]
[399304234,1766266530833,150.55,0.00010415,2]
[399304319,1766266812811,-242.0,0.00011216,2]
[399304320,1766266812833,-135.0787433,0.00011216,2]
[399304375,1766267098021,2382.0,0.00022,30]
[399304376,1766267105083,175.0,0.0002244,120]
[399304389,1766267152076,999.0,0.00012437,3]
[399304426,1766267412673,-185.3447763,0.00011216,2]
[399304427,1766267414838,-56.6552237,0.00011216,2]
[399304428,1766267414863,-15.4712567,0.00011216,2]
[399304429,1766267414886,-93.68884229,0.00012017,2]
[399304436,1766267432329,-56.86115771,0.00012017,2]
[399304438,1766267432339,-322.2189038,0.00012441,2]
[399304439,1766267432348,-500.0,0.00012493,2]
[399304440,1766267432357,-1209.79,0.00012639,2]
[399304441,1766267432365,-1500.0,0.00012655,2]
[399304442,1766267432374,-84.42700353,0.00012703,2]
[399304443,1766267432385,-452.91224315,0.00012703,2]
[399304444,1766267432396,-500.0,0.00012703,2]
[399304445,1766267432406,-1782.98592303,0.00012703,2]
[399304446,1766267432418,-977.19910769,0.00012703,2]
[399304447,1766267432429,-1202.4857226,0.00012703,2]
[399304448,1766267432439,-162.0,0.00012712,2]
[399304449,1766267432448,-150.0,0.00012766,2]
[399304450,1766267432457,-150.55,0.00012818,2]
[399304451,1766267432467,-150.0,0.00013182,2]
[399304452,1766267432476,-300.0,0.00013182,2]
[399304453,1766267432485,-151.0,0.00013183,2]
[399304454,1766267432494,-668.65185757,0.00013183,2]
[399304455,1766267432503,-300.0,0.00013183,2]
[399304456,1766267432512,-2471.02236011,0.00013183,2]
[399304457,1766267432521,-311.1,0.00013183,2]
[399304458,1766267432530,-578.20924308,0.00013183,2]
[399304459,1766267432539,-5432.0,0.00013183,2]
[399304460,1766267432549,-5138.00005689,0.00013183,2]
[399304461,1766267432558,-200.0,0.00013183,2]
[399304462,1766267432568,-207.4,0.00013183,2]
[399304464,1766267432577,-215.0738,0.00013183,2]
[399304465,1766267432587,-223.0315306,0.00013183,2]
[399304466,1766267432597,-231.28369723,0.00013183,2]
[399304467,1766267432607,-239.84119403,0.00013183,2]
[399304468,1766267432617,-248.71531821,0.00013183,2]
[399304469,1766267432628,-257.91778498,0.00013183,2]
[399304471,1766267432637,-267.46074303,0.00013183,2]
[399304473,1766267432646,-1000.0,0.00013225,2]
[399304475,1766267432655,-458.030029,0.00013225,2]
[399304477,1766267432666,-400.19717897,0.00013225,2]
[399304485,1766267433019,-133.14922502,0.00013225,2]
[399304486,1766267433076,-652.30130565,0.00013225,2]
[399304487,1766267433087,-1716.1026847,0.00013225,2]
[399304488,1766267433097,-165.40685298,0.00013225,2]
[399304489,1766267433106,-500.0,0.00013316,2]
[399304490,1766267433115,-500.0,0.00013316,2]
[399304491,1766267433125,-500.0,0.00013316,2]
[399304492,1766267433134,-500.0,0.00013316,2]
[399304493,1766267433143,-500.0,0.00013316,2]
[399304494,1766267433153,-500.0,0.00013316,2]
[399304495,1766267433163,-500.0,0.00013316,2]
[399304496,1766267433172,-500.0,0.00013316,2]
[399304497,1766267433181,-425.3696663,0.00013316,2]
[399304498,1766267433191,-500.0,0.00013316,2]
[399304499,1766267433200,-500.0,0.00013316,2]
[399304500,1766267433209,-500.0,0.00013316,2]
[399304501,1766267433218,-500.0,0.00013316,2]
[399304502,1766267433227,-500.0,0.00013316,2]
[399304503,1766267433236,-500.0,0.00013316,2]
[399304504,1766267433245,-500.0,0.00013316,2]
[399304505,1766267433254,-500.0,0.00013316,2]
[399304506,1766267433263,-250.0,0.00013316,2]
[399304507,1766267433272,-151.0,0.00013317,2]
[399304508,1766267433281,-250.0,0.00013317,2]
[399304509,1766267433290,-151.0,0.00013317,2]
[399304510,1766267433299,-250.0,0.00013317,2]
[399304511,1766267433308,-151.0,0.00013317,2]
[399304512,1766267433317,-253.0068613,0.00013317,2]
[399304513,1766267433327,-151.0,0.00013317,2]
[399304514,1766267433335,-160.0,0.00013317,2]
[399304515,1766267433345,-151.0,0.00013317,2]
[399304516,1766267433354,-553.64373807,0.00013317,2]
[399304517,1766267433363,-1000.0,0.00013317,2]
[399304518,1766267433373,-151.0,0.00013317,2]
[399304519,1766267433382,-151.0,0.00013317,2]
[399304520,1766267433392,-1000.0,0.00013317,2]
[399304521,1766267433401,-151.0,0.00013317,2]
[399304522,1766267433410,-1000.0,0.00013317,2]
[399304523,1766267433418,-151.0,0.00013317,2]
[399304524,1766267433427,-6.28330249,0.00013317,2]
[399304525,1766267433439,-493.71669751,0.00013317,2]
[399304526,1766267433449,-1000.0,0.00013317,2]
[399304527,1766267433458,-151.0,0.00013317,2]
[399304528,1766267433467,-500.0,0.00013317,2]
[399304529,1766267433477,-500.0,0.00013317,2]
[399304530,1766267433486,-151.0,0.00013317,2]
[399304531,1766267433495,-500.0,0.00013317,2]
[399304532,1766267433504,-500.0,0.00013317,2]
[399304533,1766267433514,-250.0,0.00013317,2]
[399304534,1766267433523,-151.0,0.00013317,2]
[399304535,1766267433533,-500.0,0.00013317,2]
[399304536,1766267433542,-250.0,0.00013317,2]
[399304537,1766267433552,-151.0,0.00013317,2]
[399304538,1766267433561,-500.0,0.00013317,2]
[399304539,1766267433570,-250.0,0.00013317,2]
[399304540,1766267433579,-500.0,0.00013317,2]
[399304541,1766267433589,-250.0,0.00013317,2]
[399304542,1766267433598,-500.0,0.00013317,2]
[399304543,1766267433608,-250.0,0.00013317,2]
[399304544,1766267433622,-407.21754602,0.00013317,2]
[399304545,1766267433630,-250.0,0.00013317,2]
[399304546,1766267433640,-500.0,0.00013317,2]
[399304547,1766267433649,-250.0,0.00013317,2]